[Event "Slovakia Open 2022"]
[Site "Bratislava"]
[Date "2022.10.02"]
[Round "9.3"]
[White "Heberla, Bartlomiej"]
[Black "Kraus, Tomas"]
[Result "1/2-1/2"]
[ECO "D31"]
[WhiteElo "2568"]
[BlackElo "2479"]
[Annotator "TA"]
[PlyCount "248"]
[EventDate "2022.09.30"]
[EventCountry "SVK"]
[SourceTitle "playchess.com"]
[Source "ChessBase"]
[SourceQuality "1"]
[TimeControl "2700+10"]

{[%evp 98,248,68,0,54,54,54,54,54,54,54,54,54,0,54,0,54,54,54,0,54,0,54,54,54,54,54,0,54,54,54,54,54,54,54,0,54,54,54,54,54,54,54,54,54,54,54,54,54,54,54,54,54,0,54,0,54,54,54,54,54,54,54,54,54,54,54,54,54,0,54,54,54,0,54,0,0,6,6,6,54,0,54,0,54,54,54,6,54,26,54,54,54,54,54,54,54,54,54,54,54,0,54,0,54,54,54,0,54,0,0,0,0,0,0,0,0,0,0,0,0,0,0,0,0,0,0,0,0,0,0,0,0,0,8,8,11,11,11,11,11,0,0,0,0,0,0,0,0,0,0,0,0]} 1. d4 {[%emt 0:00:03]} d5 {[%emt 0:00:28]} 2. c4 {[%emt 0:00:02]} e6 {[%emt 0:00:13]} 3. Nf3 {[%emt 0:00:05]} a6 {[%emt 0:03:15]} 4. cxd5 {[%emt 0:00:12]} exd5 {[%emt 0:00:03]} 5. Nc3 {[%emt 0:00:02]} h6 {[%emt 0:01:47]} 6. Bf4 {[%emt 0:00:07]} Nf6 {[%emt 0:00:03]} 7. e3 {[%emt 0:00:35]} Bd6 {[%emt 0:00:28]} 8. Bd3 {[%emt 0:00:08]} O-O {[%emt 0:01:06]} 9. O-O {[%emt 0:00:33]} Bxf4 {[%emt 0:02:19]} 10. exf4 {[%emt 0:00:31]} Bg4 {[%emt 0:00:02]} 11. h3 {[%emt 0:00:07]} Bxf3 {[%emt 0:00:02]} 12. Qxf3 {[%emt 0:00:02]} Nc6 {[%emt 0:02:03]} 13. Ne2 {[%emt 0:00:02]} Re8 {[%emt 0:00:01]} 14. Rad1 {[%emt 0:00:15]} Qd6 {[%emt 0:03:12]} 15. Bb1 {[%emt 0:05:08]} Qb4 {[%emt 0:02:11]} 16. b3 {[%emt 0:00:04]} Ne4 {[%emt 0:04:51]} 17. Qd3 {[%emt 0:01:24]} Qb5 {[%emt 0:04:49]} 18. Qc2 {[%emt 0:05:43]} Re7 {[%emt 0:03:25]} 19. Nc3 {[%emt 0:10:48]} Qa5 {[%emt 0:08:03]} 20. Nxe4 {[%emt 0:00:55]} Rxe4 {[%emt 0:01:12]} 21. f3 {[%emt 0:03:55]} Nb4 {[%emt 0:01:21]} 22. Qd2 {[%emt 0:12:37]} Re7 {[%emt 0:01:47]} 23. Rfe1 {[%emt 0:01:33]} Rae8 {[%emt 0:00:15]} 24. Rxe7 {[%emt 0:00:45]} Rxe7 {[%emt 0:00:10]} 25. Kf2 {[%emt 0:01:26]} Kf8 {[%emt 0:00:45]} 26. Rc1 {[%emt 0:00:45]} Qb6 {[%emt 0:03:07]} 27. Rc5 {[%emt 0:00:33]} a5 {[%emt 0:02:02]} 28. a3 {[%emt 0:00:01]} Na6 {[%emt 0:00:29]} 29. Rxa5 {[%emt 0:00:07]} Qxb3 {[%emt 0:00:07]} 30. Ba2 {[%emt 0:00:02]} Qb6 {[%emt 0:00:07]} 31. Rxd5 {[%emt 0:00:02]} c5 {[%emt 0:00:12]} 32. dxc5 {[%emt 0:01:31]} Nxc5 {[%emt 0:00:01]} 33. Qd4 {[%emt 0:00:23]} Nd3+ {[%emt 0:00:18]} 34. Kg3 {[%emt 0:00:01]} Qxd4 {[%emt 0:00:20]} 35. Rxd4 {[%emt 0:00:02]} Nc5 {[%emt 0:00:08]} 36. Rd5 {[%emt 0:00:20]} Rc7 {[%emt 0:00:09]} 37. Rd6 {[%emt 0:00:12]} Ke7 {[%emt 0:00:07]} 38. Rb6 {[%emt 0:00:01]} Nd7 {[%emt 0:00:09]} 39. Rb2 {[%emt 0:00:07]} b6 {[%emt 0:00:13]} 40. Re2+ {[%emt 0:00:09]} Kf6 {[%emt 0:00:14]} 41. Rd2 {[%emt 0:00:03]} Ke7 {[%emt 0:00:05]} 42. Re2+ {[%emt 0:00:11]} Kf6 {[%emt 0:00:00]} 43. Re3 {[%emt 0:00:01]} Nc5 {[%emt 0:00:07]} 44. Kf2 {[%emt 0:00:11]} Ne6 {[%emt 0:00:27]} 45. Bxe6 {[%emt 0:00:06]} fxe6 {[%emt 0:00:01]} 46. Rb3 {[%emt 0:00:01]} Rc2+ {[%emt 0:00:03]} 47. Kg3 {[%emt 0:00:05]} Ra2 {[%emt 0:00:15]} 48. h4 {[%emt 0:00:08]} g6 {[%emt 0:00:15]} 49. Kh3 {[%emt 0:00:22]} Kf5 {[%emt 0:00:18]} 50. Kg3 {[%emt 0:00:11]} (50. Rb4 $14) 50... h5 {[%emt 0:00:07]} (50... Kf6 $11) 51. Re3 {[%emt 0:00:26]} Kf6 {[%emt 0:00:09]} 52. Rd3 {[%emt 0:00:04]} Kf5 {[%emt 0:00:10]} 53. Rb3 {[%emt 0:00:01]} Ra1 {[%emt 0:00:08]} 54. Rc3 {[%emt 0:00:39]} Ra2 {[%emt 0:00:03]} 55. Re3 {[%emt 0:00:01]} (55. Rc6 $14) 55... Ra1 {[%emt 0:00:02]} (55... Kf6 $11) 56. Rd3 {[%emt 0:00:01]} Ra2 $1 {[%emt 0:00:02]} 57. Rd8 {[%emt 0:00:13]} Kf6 $1 {[%emt 0:00:05]} 58. Rd3 {[%emt 0:00:01]} Kf5 $1 {[%emt 0:00:00]} 59. Rb3 {[%emt 0:00:08]} Ra1 $1 {[%emt 0:00:03]} 60. Rxb6 {[%emt 0:00:07]} Rxa3 {[%emt 0:00:01]} 61. Rb7 {[%emt 0:00:01]} Kf6 $1 {[%emt 0:00:01]} 62. Kh3 {[%emt 0:00:07]} (62. Rb5 $14) 62... Rc3 {[%emt 0:00:08]} (62... Ra4 $11) 63. Rh7 $14 {[%emt 0:00:09]} Ra3 {[%emt 0:00:06]} 64. Kh2 {[%emt 0:00:04]} Ra4 {[%emt 0:00:14]} 65. Kg3 {[%emt 0:00:53]} Ra2 {[%emt 0:00:02]} 66. Rb7 {[%emt 0:00:03]} ({White should try} 66. Rc7 $14) 66... Ra4 {[%emt 0:00:10]} (66... Ra3 $1 $11) 67. Rb3 {[%emt 0:00:05]} Rc4 {[%emt 0:00:06]} 68. Re3 {[%emt 0:00:02]} Ra4 {[%emt 0:00:20]} 69. Re4 {[%emt 0:00:02]} Ra2 {[%emt 0:00:01]} 70. Kh2 {[%emt 0:00:14]} Rb2 {[%emt 0:00:06]} 71. Kg1 {[%emt 0:00:02]} Rb1+ {[%emt 0:00:12]} 72. Kf2 {[%emt 0:00:06]} Rb2+ {[%emt 0:00:50]} 73. Re2 {[%emt 0:00:08]} Rb4 {[%emt 0:00:06]} 74. Kg3 {[%emt 0:00:35]} Ra4 {[%emt 0:00:06]} 75. Re4 {[%emt 0:00:03]} Ra2 $1 {[%emt 0:00:02]} 76. Kh2 {[%emt 0:00:02]} Rb2 $1 {[%emt 0:00:12]} 77. Kh3 {[%emt 0:00:02]} Rb3 {[%emt 0:00:09]} 78. Kg3 {[%emt 0:00:01]} Rb2 {[%emt 0:00:07]} 79. Rc4 {[%emt 0:00:03]} Ra2 {[%emt 0:00:05]} 80. Kh2 {[%emt 0:00:01]} Kf5 {[%emt 0:00:13]} 81. Rc5+ {[%emt 0:00:23]} Kf6 $1 {[%emt 0:00:06]} (81... Kxf4 $2 82. Rg5 $18) 82. Re5 {[%emt 0:00:02]} Rb2 {[%emt 0:00:06]} 83. Kg1 {[%emt 0:00:27]} (83. Kh3 $14) 83... Rb1+ {[%emt 0:00:31]} ({Black should play} 83... Rb4 $1 $11) 84. Kf2 $14 {[%emt 0:00:01]} Rb2+ {[%emt 0:00:06]} 85. Re2 {[%emt 0:00:03]} Rb4 $1 {[%emt 0:00:04]} 86. Kg3 {[%emt 0:00:56]} (86. g3 $14) 86... Ra4 $11 {[%emt 0:00:06]} 87. Rb2 {[%emt 0:00:01]} Rc4 {[%emt 0:00:07]} 88. Rb8 {[%emt 0:00:02]} Rc2 {[%emt 0:00:12]} (88... Ra4 $11) 89. Kh3 {[%emt 0:00:05]} (89. Rb4 $1 $14) 89... Rc3 {[%emt 0:00:14]} ({Better is} 89... Rc4 $11) 90. Kh2 {[%emt 0:00:07]} (90. Rd8 $14) 90... Rc2 {[%emt 0:00:05]} (90... Rc4 $11) 91. Rf8+ $14 {[%emt 0:00:29]} Kg7 {[%emt 0:00:08]} 92. Ra8 {[%emt 0:00:01]} (92. Rd8 $14 {was preferrable.}) 92... Kf6 {[%emt 0:00:03]} (92... Rc4 $1 $11) 93. Ra3 {[%emt 0:00:07]} Rb2 {[%emt 0:00:04]} 94. Kh3 {[%emt 0:00:01]} Rb4 {[%emt 0:00:07]} 95. g3 {[%emt 0:00:46]} Rc4 {[%emt 0:00:18]} 96. Rd3 {[%emt 0:00:03]} Ra4 {[%emt 0:00:05]} 97. Re3 {[%emt 0:00:08]} Rb4 {[%emt 0:00:07]} 98. Kg2 {[%emt 0:00:20]} Rb2+ {[%emt 0:00:18]} 99. Kh3 {[%emt 0:00:03]} Rb4 {[%emt 0:00:04]} 100. Ra3 {[%emt 0:00:03]} Rc4 $1 {[%emt 0:00:14]} 101. Rb3 {[%emt 0:00:26]} Ra4 {[%emt 0:00:02]} 102. Re3 {[%emt 0:00:03]} Rb4 $1 {[%emt 0:00:03]} 103. g4 {[%emt 0:00:19]} (103. Rc3 $14) 103... Rxf4 $11 {[%emt 0:00:36]} 104. g5+ {[%emt 0:00:10]} Kf7 {[%emt 0:00:46]} 105. Ra3 {[%emt 0:00:01]} e5 {[%emt 0:00:39]} 106. Ra7+ {[%emt 0:00:18]} Kf8 {[%emt 0:00:05]} 107. Kg3 {[%emt 0:00:02]} Rf5 {[%emt 0:00:13]} 108. Rb7 {[%emt 0:00:08]} Rf4 {[%emt 0:00:12]} 109. Rb6 {[%emt 0:00:14]} ({Resist} 109. Rb5 Rf5 $14) 109... Kf7 {[%emt 0:00:05]} 110. Rb7+ {[%emt 0:00:12]} Kf8 {[%emt 0:00:01]} 111. Rb5 {[%emt 0:00:08]} Rf5 $1 {[%emt 0:00:04]} 112. Kf2 {[%emt 0:00:19]} Rf4 {[%emt 0:00:14]} 113. Rb8+ {[%emt 0:00:13]} Kf7 {[%emt 0:00:05]} 114. Rb7+ {[%emt 0:00:01]} Kf8 {[%emt 0:00:02]} 115. Kg3 {[%emt 0:00:03]} Rf5 {[%emt 0:00:30]} 116. Rb4 {[%emt 0:00:02]} Kf7 {[%emt 0:00:12]} 117. Ra4 {[%emt 0:00:04]} Kf8 {[%emt 0:00:10]} 118. Kf2 {[%emt 0:00:09]} Kf7 {[%emt 0:00:16]} 119. Ke3 {[%emt 0:00:01]} Kg7 {[%emt 0:00:15]} 120. Ra7+ {[%emt 0:00:45]} Rf7 {[%emt 0:00:01]} 121. Ra5 {[%emt 0:00:17]} Rf4 {[%emt 0:00:11]} 122. Rxe5 {[%emt 0:00:05]} Rxh4 {[%emt 0:00:01]} 123. Re7+ {[%emt 0:00:05]} Kf8 {[%emt 0:00:05]} 124. Ra7 {[%emt 0:00:02]} Rb4 {[%emt 0:00:09]} 1/2-1/2

[Event "Slovakia Open 2022"]
[Site "Bratislava"]
[Date "2022.10.02"]
[Round "9.4"]
[White "Korobov, Anton"]
[Black "Mikrut, Dariusz"]
[Result "1-0"]
[ECO "E94"]
[WhiteElo "2671"]
[BlackElo "2316"]
[Annotator "TA"]
[PlyCount "117"]
[EventDate "2022.09.30"]
[EventCountry "SVK"]
[SourceTitle "playchess.com"]
[Source "ChessBase"]
[SourceQuality "1"]
[TimeControl "2700+10"]

{[%evp 20,117,90,68,86,76,75,39,87,58,104,76,75,38,43,46,93,99,85,79,74,80,67,64,45,27,11,5,164,0,0,0,0,0,0,-93,0,0,0,0,0,0,0,0,0,-44,-58,-69,-76,-58,9,11,12,11,34,8,10,0,0,0,19,13,13,17,18,13,9,8,53,8,9,9,51,8,13,21,39,35,115,103,95,83,170,147,329,358,261,280,352,345,562,533,568,557,608,424,1376,1085,4622,-29979]} 1. d4 {[%emt 0:00:16]} Nf6 {[%emt 0:00:04]} 2. c4 {[%emt 0:00:04]} g6 {[%emt 0:00:01]} 3. Nc3 {[%emt 0:00:02]} Bg7 {[%emt 0:00:10]} 4. e4 {[%emt 0:00:02]} d6 {[%emt 0:00:00]} 5. Be2 {[%emt 0:00:02]} O-O {[%emt 0:00:00]} 6. Nf3 {[%emt 0:00:02]} e5 {[%emt 0:00:00]} 7. O-O {[%emt 0:00:04]} Nbd7 {[%emt 0:00:48]} 8. Qc2 {[%emt 0:00:57]} c6 {[%emt 0:00:09]} 9. Rd1 {[%emt 0:00:13]} Qe7 {[%emt 0:00:02]} 10. d5 {[%emt 0:00:28]} c5 {[%emt 0:00:01]} 11. Rb1 {[%emt 0:00:28]} h6 {[%emt 0:05:56] E94: King's Indian: Classical: 6 Be2 e5 7 0-0: Various Black 7th moves.} 12. g3 {[%emt 0:01:11] [#]} Nh7 $146 {[%emt 0:00:02][%cal Bf6h7,Bh7g5,Bg5h3][%mdl 32]} ({Predecessor:} 12... b6 13. Nh4 Kh7 14. Na4 Ng8 15. a3 Bf6 16. Ng2 Bg5 17. f4 exf4 18. gxf4 Bf6 19. Nc3 {½-½ (46) Del Rio de Angelis,S (2490)-Valensi,B (2154) Istanbul 2003}) 13. Nh4 {[%emt 0:00:03] White is more active.} h5 {[%emt 0:01:01]} (13... Ndf6 $14) 14. a3 {[%emt 0:00:23]} Bf6 {[%emt 0:00:02]} (14... Ng5 $14 {was preferrable.}) 15. Ng2 {[%emt 0:00:24]} Ng5 {[%emt 0:00:40]} 16. Be3 {[%emt 0:01:52]} Nh3+ {[%emt 0:00:13]} 17. Kh1 {[%emt 0:00:02]} Bg5 {[%emt 0:00:00]} (17... Rd8 $14 {feels stronger.}) 18. f4 $16 {[%emt 0:00:36]} exf4 {[%emt 0:00:28]} 19. gxf4 {[%emt 0:00:06]} Bh6 {[%emt 0:00:03]} 20. b4 {[%emt 0:01:03]} b6 {[%emt 0:00:05]} 21. Rf1 $1 {[%emt 0:02:52][%cal Oe4e5]} Nf6 {[%emt 0:02:25]} 22. bxc5 {[%emt 0:01:03]} bxc5 {[%emt 0:00:06]} 23. e5 {[%emt 0:04:31]} dxe5 {[%emt 0:09:56]} (23... Ng4 $11 24. Bxg4 hxg4) 24. fxe5 $2 {[%emt 0:07:52]} (24. d6 $1 $18 {[%cal Rd6e7]} Qe8 25. f5 Bxe3 26. Nxe3) 24... Bxe3 $11 {[%emt 0:00:07]} 25. exf6 {[%emt 0:00:03]} Qe5 {[%emt 0:00:40][%cal Oe3g1]} 26. Nxe3 {[%emt 0:01:47]} Qxe3 {[%emt 0:00:04]} 27. Qc1 {[%emt 0:00:15]} (27. Bf3 $11) 27... Qxc1 {[%emt 0:00:47]} ({Don't play} 27... Nf2+ 28. Kg2 (28. Kg1 Nh3+ 29. Kg2 Re8 $11) 28... Qxc1 29. Rfxc1 $16 (29. Rbxc1 Ng4 $14)) (27... Re8 $1 $17 {...Bf5 is the strong threat.} 28. Qxe3 Rxe3) 28. Rbxc1 {[%emt 0:00:40]} Re8 {[%emt 0:00:24]} 29. Rfe1 {[%emt 0:02:42]} Bf5 {[%emt 0:00:22]} 30. Bf1 {[%emt 0:00:02]} Nf2+ {[%emt 0:00:04]} 31. Kg1 {[%emt 0:00:07]} Ng4 {[%emt 0:00:04]} 32. Na4 {[%emt 0:00:46]} Ne5 {[%emt 0:05:46]} 33. Kf2 {[%emt 0:01:28] Against Nf3} Nd7 {[%emt 0:00:04]} 34. Re7 {[%emt 0:00:37]} Rec8 {[%emt 0:02:35] [#]} ({Better is} 34... Rab8 $15) 35. Bd3 $1 $36 {[%emt 0:00:54][%mdl 2048] White is more active.} Nxf6 {[%emt 0:01:55]} 36. Bxf5 {[%emt 0:00:03]} gxf5 {[%emt 0:00:01]} 37. Kf3 {[%emt 0:00:24] aiming for Kf4.} Ne4 {[%emt 0:01:51]} 38. Nc3 {[%emt 0:03:03]} Kf8 {[%emt 0:00:42]} 39. Re5 {[%emt 0:00:02]} Nd6 {[%emt 0:03:41]} 40. Nb5 {[%emt 0:00:31]} Nxb5 {[%emt 0:00:22]} 41. cxb5 {[%emt 0:00:01][%mdl 4096] Endgame KRR-KRR} Rab8 {[%emt 0:00:01]} 42. a4 {[%emt 0:02:08]} a6 $1 {[%emt 0:01:22]} 43. bxa6 {[%emt 0:00:03]} Rb6 {[%emt 0:00:31]} 44. Rxf5 {[%emt 0:00:14]} (44. a7 {looks sharper.} Ra8 45. Rxc5 Rxa7 46. a5) 44... Rxa6 {[%emt 0:01:47]} 45. Rxh5 {[%emt 0:02:23]} Rc7 {[%emt 0:00:10]} 46. Rc4 {[%emt 0:00:10]} Rb7 {[%emt 0:01:42]} 47. Rh8+ {[%emt 0:00:58]} ({Much less strong is} 47. Rxc5 Rxa4 48. Rc3 Rb1 $14) 47... Kg7 {[%emt 0:00:36]} 48. Rc8 {[%emt 0:00:53]} Rf6+ {[%emt 0:00:42]} ({Black should try} 48... Rb4 $14 49. Rxb4 (49. R4xc5 Raxa4 50. Rc3 Rh4 $11) 49... cxb4) 49. Ke3 $16 {[%emt 0:01:50] Strongly threatening Rg4+.} Rb3+ {[%emt 0:01:17]} 50. Ke4 {[%emt 0:00:14]} Rh6 {[%emt 0:01:42]} (50... Rh3 $16) 51. R8xc5 $18 {[%emt 0:00:31]} Rxh2 $2 {[%emt 0:00:28]} (51... Rb1 $16 52. h4 Rxh4+ 53. Ke5 Rh5+ 54. Kd6 Rh6+ 55. Kd7 f5) 52. Ke5 $1 {[%emt 0:01:38]} Rb6 {[%emt 0:00:52]} 53. Rc6 {[%emt 0:00:05]} Rb8 {[%emt 0:00:11] [#]} 54. Rc8 $1 {[%emt 0:02:03]} Rh5+ $2 {[%emt 0:00:30] [#]} (54... Rb7 {was worth a try.} 55. a5 Ra7 56. Rg4+ Kh7) 55. Kd6 $1 {[%emt 0:00:09] White is clearly winning.} Rb1 {[%emt 0:00:10]} 56. a5 {[%emt 0:00:39]} Ra1 {[%emt 0:00:12]} 57. R8c5 {[%emt 0:00:11]} Rd1 {[%emt 0:00:20]} (57... Rh8 $142 58. Ke7 Re1+ 59. Kd7 Ra8) 58. Kc7 {[%emt 0:00:21] Threatens to win with Ra4.} Rdxd5 {[%emt 0:00:23]} 59. Rb5 $4 {[%emt 0:00:12][%mdl 40960] Quite a comeback for Black.  Weighted Error Value: White=0.19 (very precise) /Black=0.32. Loss on time!?} 1-0

[Event "Slovakia Open 2022"]
[Site "Bratislava"]
[Date "2022.10.02"]
[Round "9.5"]
[White "Klabis, Rokas"]
[Black "Kushko, Dmitriy"]
[Result "1-0"]
[ECO "B07"]
[WhiteElo "2396"]
[BlackElo "2302"]
[Annotator "TA"]
[PlyCount "80"]
[EventDate "2022.09.30"]
[EventCountry "SVK"]
[SourceTitle "playchess.com"]
[Source "ChessBase"]
[SourceQuality "1"]
[TimeControl "2700+10"]

{[%evp 9,80,41,54,45,53,41,45,29,24,31,38,29,48,31,33,22,27,28,25,14,50,8,30,0,13,0,4,0,0,0,0,7,26,29,38,27,14,8,17,31,37,39,50,61,56,53,51,54,75,79,81,81,112,68,100,93,164,160,149,149,513,259,259,259,259,270,257,249,401,403,557,640,29997]} 1. e4 {[%emt 0:00:04]} d6 {[%emt 0:00:02]} 2. d4 {[%emt 0:00:04]} Nf6 {[%emt 0:00:01]} 3. Nc3 {[%emt 0:00:01]} g6 {[%emt 0:00:02]} 4. Be3 {[%emt 0:00:14]} c6 {[%emt 0:00:01]} 5. h3 {[%emt 0:00:06]} Qb6 {[%emt 0:00:35]} 6. Qc1 {[%emt 0:00:38] B07: Pirc Defence: Miscellaneous Systems.} Bg7 {[%emt 0:00:29]} 7. Nf3 {[%emt 0:00:02]} O-O {[%emt 0:00:19]} 8. Bd3 {[%emt 0:00:10] White is slightly better.} Qc7 {[%emt 0:00:26]} 9. O-O {[%emt 0:00:27]} Nbd7 {[%emt 0:00:32]} 10. a4 {[%emt 0:00:20][%cal Ba2a4,Ba4a5][%mdl 32] [#]} Re8 $146 {[%emt 0:11:27]} ({Predecessor:} 10... e5 11. dxe5 Nxe5 12. Nxe5 dxe5 13. a5 Nh5 14. Bc5 Rd8 15. Qe3 Qb8 16. Bc4 Nf4 {1-0 (39) Vasiesiu,D (2440)-Iordachescu,V (2562) Romania 2001}) 11. a5 {[%emt 0:00:11]} e5 {[%emt 0:02:09]} 12. dxe5 {[%emt 0:00:15]} Nxe5 {[%emt 0:00:02]} 13. Nxe5 {[%emt 0:00:01]} Rxe5 {[%emt 0:00:06]} 14. Bf4 {[%emt 0:06:32]} Re8 {[%emt 0:00:28]} 15. Bh2 {[%emt 0:00:50]} Be6 {[%emt 0:01:38]} 16. Rd1 {[%emt 0:00:24]} Rad8 {[%emt 0:00:17]} 17. Ra3 {[%emt 0:08:09]} Qc8 {[%emt 0:05:45]} 18. Bf1 {[%emt 0:03:18]} d5 {[%emt 0:00:50]} 19. exd5 {[%emt 0:00:49]} Bxd5 {[%emt 0:03:33]} 20. Nxd5 {[%emt 0:01:42]} cxd5 {[%emt 0:01:36]} 21. Rc3 {[%emt 0:00:35]} Qf5 {[%emt 0:05:20]} 22. Rf3 {[%emt 0:04:19]} Qd7 {[%emt 0:00:56]} 23. Rb3 {[%emt 0:00:01] [#] Strongly threatening Bb5.} Re6 {[%emt 0:00:40]} 24. Qf4 {[%emt 0:02:18]} Ne4 {[%emt 0:03:52]} 25. Qc7 {[%emt 0:05:57] Against Be5} Qxc7 {[%emt 0:01:21]} 26. Bxc7 {[%emt 0:00:02]} Rc8 {[%emt 0:01:14]} 27. Bf4 $36 {[%emt 0:00:44][%mdl 2048] White is more active.} ({Of course not} 27. Rxb7 Re7 28. Rxa7 Rexc7 29. Rxc7 Rxc7 $15) 27... Nc5 {[%emt 0:00:37]} (27... Rxc2 $2 28. Rxb7 Re8 29. f3 $16 (29. Rxd5 Rxf2 30. Be3 Rxb2 $18)) 28. Rb4 {[%emt 0:00:47]} Re4 {[%emt 0:00:09]} 29. Rxe4 {[%emt 0:00:07]} dxe4 {[%emt 0:00:02]} 30. c3 {[%emt 0:00:31]} Bf8 {[%emt 0:01:53]} 31. Rd4 {[%emt 0:02:04]} Nb3 {[%emt 0:01:15]} 32. Rd7 {[%emt 0:02:06]} Nxa5 {[%emt 0:02:23]} (32... Nc5 $16 {was necessary.} 33. Rd4 Ne6 34. Rxe4 Nxf4) 33. b4 $18 {[%emt 0:00:01][%mdl 64] [#] Deflection} Nb3 {[%emt 0:00:01]} 34. Rxb7 {[%emt 0:00:02] White is more active.} Bg7 $2 {[%emt 0:00:22][%mdl 8192] This move loses the game for Black.} (34... Rxc3 $16 {is a better chance.} 35. Rxa7 Rc2) 35. Rxa7 {[%emt 0:02:50]} Bxc3 {[%emt 0:00:04]} 36. b5 {[%emt 0:00:01] Hoping for b6.} Bd4 {[%emt 0:00:24]} 37. b6 {[%emt 0:01:39]} Bxb6 {[%emt 0:00:13]} 38. Rb7 {[%emt 0:00:01]} Rc6 {[%emt 0:00:13]} (38... Bd4) 39. Bh6 {[%emt 0:00:19] Threatening mate with Rb8+.} f5 {[%emt 0:00:11]} 40. Bb5 {[%emt 0:00:11] A strong pair of Bishops.} Rd6 {[%emt 0:00:11] Weighted Error Value: White=0.21 (precise) /Black=0.34} 1-0

[Event "Slovakia Open 2022"]
[Site "Bratislava"]
[Date "2022.10.02"]
[Round "9.6"]
[White "Hnatyshyn, Anastasiia"]
[Black "Stevik, Patrik"]
[Result "1-0"]
[ECO "B06"]
[WhiteElo "2087"]
[BlackElo "2148"]
[Annotator "TA"]
[PlyCount "79"]
[EventDate "2022.09.30"]
[EventCountry "SVK"]
[SourceTitle "playchess.com"]
[Source "ChessBase"]
[SourceQuality "1"]
[TimeControl "2700+10"]

{[%evp 9,78,13,91,94,188,191,178,153,171,178,367,185,351,165,545,543,494,257,257,254,264,273,277,273,399,226,235,231,258,206,272,272,514,513,451,346,314,212,289,277,272,238,252,245,245,196,727,727,715,725,650,626,689,684,729,638,1479,1452,1879,1925,5389,1164,29985,29986,29996,29996,29997,29998,29999,29999,29999]} 1. e4 {[%emt 0:00:03]} g6 {[%emt 0:00:08]} 2. d4 {[%emt 0:00:03]} Bg7 {[%emt 0:00:02]} 3. f4 {[%emt 0:00:06]} d6 {[%emt 0:00:19]} 4. Nf3 {[%emt 0:00:05]} c5 {[%emt 0:00:43]} 5. c3 {[%emt 0:00:59]} Bg4 {[%emt 0:00:19] [#]} (5... Nf6 $11) 6. dxc5 $1 $16 {[%emt 0:02:16] B06: Modern Defence.} Bxf3 {[%emt 0:00:07]} (6... Nf6 $16) 7. Qxf3 $18 {[%emt 0:00:12]} ({Don't take} 7. gxf3 $6 Nc6 $16) 7... dxc5 {[%emt 0:00:02] [#]} 8. Bc4 $146 {[%emt 0:00:54] White is clearly better.} ({Predecessor:} 8. Bb5+ Nc6 9. Bxc6+ bxc6 10. e5 Qd5 11. O-O Nh6 12. c4 Qxf3 13. Rxf3 Nf5 14. Nc3 {0-1 (24) Makarevich,G (2008)-Okladnikov,G (2217) Novosibirsk 2008}) 8... e6 {[%emt 0:00:36]} 9. O-O {[%emt 0:00:42] f5 is the strong threat.} Qb6 $2 {[%emt 0:01:17]} (9... Nc6 10. Be3 b6) 10. Na3 {[%emt 0:01:09]} (10. f5 $142) 10... Ne7 $2 {[%emt 0:00:42]} (10... Nf6 11. e5 Nfd7) 11. Be3 {[%emt 0:01:19]} (11. f5 $142 {Threatens to win with f6.} gxf5 12. Bb5+ Kf8 13. exf5 exf5 14. Bf4) 11... Qxb2 $2 {[%emt 0:04:02]} (11... O-O 12. Rfd1 Na6) 12. Nb5 {[%emt 0:00:33]} O-O {[%emt 0:01:27]} 13. Rfc1 {[%emt 0:03:08] Prevents Qc2.} (13. Bxc5 $142 Rc8 14. Ba3) 13... a6 {[%emt 0:07:17]} 14. Rab1 {[%emt 0:00:26]} Qxc1+ {[%emt 0:00:32]} 15. Rxc1 {[%emt 0:00:14][%cal Bb1c1,Bc1d1,Bd1d7][%mdl 32]} axb5 {[%emt 0:00:03]} 16. Bxb5 {[%emt 0:00:19]} ({Weaker is} 16. Bxc5 bxc4 17. Bxe7 Re8 $16) 16... b6 {[%emt 0:00:50]} (16... Rc8 {was called for.} 17. a4 Na6) 17. a4 {[%emt 0:00:30]} (17. f5 $142 {And now f6 would win.} gxf5 18. exf5 Nxf5 19. Bxc5 bxc5 20. Qxa8) 17... Nbc6 {[%emt 0:00:30]} 18. e5 {[%emt 0:01:08]} Na5 {[%emt 0:00:34]} 19. Rd1 {[%emt 0:01:16]} Nd5 {[%emt 0:00:53]} 20. Bf2 {[%emt 0:00:44]} Rfd8 $2 {[%emt 0:02:04]} (20... Nc7 21. Qd3 Nd5) 21. Bh4 {[%emt 0:01:52] A strong pair of Bishops.} Rdc8 {[%emt 0:01:44]} 22. c4 {[%emt 0:02:32]} Nb4 {[%emt 0:00:10]} 23. Rd7 {[%emt 0:01:49]} Nac6 {[%emt 0:02:32]} 24. h3 {[%emt 0:01:41]} Nd4 {[%emt 0:02:00]} 25. Qb7 {[%emt 0:00:34][%csl LRb6,LRf7]} Rab8 {[%emt 0:00:49]} 26. Qe4 {[%emt 0:00:40]} Bh6 {[%emt 0:02:27]} 27. Be7 {[%emt 0:04:29] [#] Black must now prevent Rxd4.} Ra8 $2 {[%emt 0:03:54]} (27... Na2 28. Kh2 Nc3) 28. Rxd4 {[%emt 0:03:10]} cxd4 {[%emt 0:00:02]} 29. Bxb4 {[%emt 0:00:03]} d3 {[%emt 0:00:01]} 30. g3 {[%emt 0:00:25]} Rd8 {[%emt 0:00:25]} 31. Bd6 {[%emt 0:00:21]} g5 {[%emt 0:00:02]} 32. fxg5 {[%emt 0:01:13]} Bxg5 {[%emt 0:00:03]} 33. Qg4 {[%emt 0:00:37]} h6 {[%emt 0:00:39]} 34. h4 {[%emt 0:00:46]} f5 {[%emt 0:00:10]} 35. Qf3 {[%emt 0:00:17]} (35. exf6 $142 d2 36. hxg5) 35... Bf6 {[%emt 0:00:18]} 36. exf6 {[%emt 0:01:54] White mates.} Rxd6 {[%emt 0:00:39]} 37. Qxa8+ {[%emt 0:00:24]} Kf7 {[%emt 0:00:10]} 38. Qh8 {[%emt 0:00:09][%csl Gf6][%cal Rh8g7]} Kg6 {[%emt 0:00:34]} 39. Qg7+ {[%emt 0:00:02]} Kh5 {[%emt 0:00:02]} 40. Be8# {[%emt 0:00:02] Black did not feel at home in the position after the opening.  Weighted Error Value: White=0.44/Black=0.71} 1-0